fUSD/lending_fUSD_20241028
["ID","MTS","AMOUNT","RATE_DAILY","PERIOD"]
[340943370,1730141446979,-1819.07,0.00042791,3]
[340943371,1730141446990,-500.0,0.00042791,3]
[340943372,1730141447000,-582.55,0.00042791,3]
[340943373,1730141447010,-500.0,0.00042791,3]
[340943374,1730141447020,-703.89,0.00042791,3]
[340943375,1730141447151,-1052.42,0.00042791,3]
[340943376,1730141447179,-528.4128565,0.00042791,3]
[340943377,1730141447189,-500.0,0.00042791,3]
[340943378,1730141447199,-999.3,0.00042891,3]
[340943379,1730141447209,-151.505,0.00042896,30]
[340943380,1730141447220,-216.18140778,0.00042927,15]
[340943381,1730141447229,-162.5,0.00042959,30]
[340943382,1730141447239,-500.0,0.00042964,3]
[340943383,1730141447249,-500.0,0.00042964,3]
[340943384,1730141447259,-500.0,0.00042964,3]
[340943385,1730141447269,-500.0,0.00042964,3]
[340943386,1730141447278,-500.0,0.00042964,3]
[340943387,1730141447287,-500.0,0.00042964,3]
[340943388,1730141447297,-500.0,0.00042964,3]
[340943389,1730141447307,-500.0,0.00042964,3]
[340943390,1730141447318,-1511.59,0.00042964,120]
[340943391,1730141447329,-1050.87,0.00042964,3]
[340943392,1730141447339,-515.93,0.00042964,3]
[340943393,1730141447349,-2055.95,0.00042964,3]
[340943394,1730141447359,-960.98,0.00042964,3]
[340943395,1730141447369,-500.0,0.00042964,3]
[340943396,1730141447379,-500.0,0.00042964,3]
[340943397,1730141447388,-500.0,0.00042964,3]
[340943398,1730141447398,-447.79442658,0.00042964,3]
[340943399,1730141447408,-1132.18,0.00042964,2]
[340943400,1730141447418,-7500.0,0.00042999,120]
[340943401,1730141447428,-10000.0,0.00043,3]
[340943402,1730141447437,-50000.0,0.00043,3]
[340943403,1730141447447,-13829.77660511,0.00043,2]
[340943404,1730141447457,-503.98463767,0.00043,5]
[340943405,1730141447467,-3327.75,0.00043,30]
[340943406,1730141447477,-453.77858276,0.00043,2]
[340943407,1730141447487,-9000.0,0.00043,10]
[340943408,1730141447497,-400.0,0.00043,5]
[340943409,1730141447507,-13357.0,0.00043,20]
[340943410,1730141447516,-428.48945088,0.00043,120]
[340943411,1730141447526,-407.21826142,0.00043,2]
[340943412,1730141447536,-20003.93808733,0.00043,120]
[340943413,1730141447546,-1087.58373085,0.00043,7]
[340943414,1730141447555,-164.0,0.00043,120]
[340943415,1730141447565,-500.0,0.00043065,3]
[340943416,1730141447574,-1819.07,0.00043065,3]
[340943417,1730141447584,-500.0,0.00043065,3]
[340943418,1730141447593,-582.55,0.00043065,3]
[340943419,1730141447603,-500.0,0.00043065,3]
[340943420,1730141447613,-703.89,0.00043065,3]
[340943421,1730141447622,-1052.42,0.00043065,3]
[340943422,1730141447632,-500.0,0.00043065,3]
[340943423,1730141447642,-1500.0,0.00043119,7]
[340943424,1730141447652,-1500.0,0.00043138,7]
[340943425,1730141447663,-999.3,0.00043165,3]
[340943426,1730141447676,-152.0,0.00043165,3]
[340943427,1730141447686,-1285.0,0.00043195,10]
[340943428,1730141447697,-16600.0,0.000432,15]
[340943429,1730141447706,-500.0,0.00043238,3]
[340943430,1730141447717,-500.0,0.00043238,3]
[340943431,1730141447727,-500.0,0.00043238,3]
[340943432,1730141447737,-500.0,0.00043238,3]
[340943433,1730141447748,-243.2017,0.00043238,3]
[340943434,1730141447758,-500.0,0.00043238,3]
[340943435,1730141447768,-500.0,0.00043238,3]
[340943436,1730141447778,-500.0,0.00043238,3]
[340943437,1730141447787,-1511.59,0.00043238,120]
[340943438,1730141447797,-1050.87,0.00043238,3]
[340943439,1730141447807,-515.93,0.00043238,3]
[340943440,1730141447816,-2055.95,0.00043238,3]
[340943441,1730141447826,-960.98,0.00043238,3]
[340943442,1730141447836,-500.0,0.00043238,3]
[340943443,1730141447846,-500.0,0.00043238,3]
[340943444,1730141447855,-638.51303102,0.00043238,3]
[340943445,1730141447864,-1000.0,0.00043242,10]
[340943446,1730141447874,-150.0,0.00043259,2]
[340943447,1730141447883,-162.5,0.00043288,30]
[340943448,1730141447893,-20700.0,0.000433,15]
[340943449,1730141447902,-330.0,0.00043316,8]
[340943450,1730141447912,-500.0,0.00043339,3]
[340943451,1730141447921,-1819.07,0.00043339,3]
[340943452,1730141447931,-500.0,0.00043339,3]
[340943453,1730141447941,-582.55,0.00043339,3]
[340943454,1730141447950,-500.0,0.00043339,3]
[340943455,1730141447961,-703.89,0.00043339,3]
[340943456,1730141447971,-1052.42,0.00043339,3]
[340943457,1730141447980,-500.0,0.00043339,3]
[340943458,1730141447990,-4100.0,0.000434,15]
[340943459,1730141447999,-1500.0,0.000434,7]
[340943460,1730141448009,-273.998,0.00043433,120]
[340943461,1730141448018,-273.998,0.00043433,120]
[340943462,1730141448028,-273.998,0.00043433,120]
[340943463,1730141448038,-273.999,0.00043433,120]
[340943464,1730141448047,-273.998,0.00043433,120]
[340943465,1730141448057,-999.3,0.00043439,3]
[340943466,1730141448067,-2158.56373216,0.00043476,14]
[340943467,1730141448077,-183.67,0.00043498,2]
[340943468,1730141448087,-2000.0,0.000435,2]
[340943469,1730141448096,-4100.0,0.000435,15]
[340943470,1730141448106,-500.0,0.00043512,3]
[340943471,1730141448115,-500.0,0.00043512,3]
[340943472,1730141448124,-500.0,0.00043512,3]
[340943473,1730141448135,-500.0,0.00043512,3]
[340943474,1730141448144,-500.0,0.00043512,3]
[340943475,1730141448154,-500.0,0.00043512,3]
[340943476,1730141448164,-533.71229219,0.00043512,3]
[340943477,1730141448174,-1511.59,0.00043512,120]
[340943478,1730141448183,-1050.87,0.00043512,3]
[340943479,1730141448193,-515.93,0.00043512,3]
[340943480,1730141448202,-2055.95,0.00043512,3]
[340943481,1730141448212,-960.98,0.00043512,3]
[340943482,1730141448221,-500.0,0.00043512,3]
[340943483,1730141448231,-500.0,0.00043512,3]
[340943484,1730141448241,-10161.83,0.00043541,120]
[340943485,1730141448251,-4100.0,0.000436,15]
[340943486,1730141448261,-500.0,0.00043613,3]
[340943487,1730141448271,-1819.07,0.00043613,3]
[340943488,1730141448281,-500.0,0.00043613,3]
[340943489,1730141448290,-582.55,0.00043613,3]
[340943490,1730141448300,-483.57890443,0.00043613,3]
[340943491,1730141448311,-703.89,0.00043613,3]
[340943492,1730141448320,-1052.42,0.00043613,3]
[340943493,1730141448330,-500.0,0.00043613,3]
[340943494,1730141448340,-10354.48515004,0.00043667,6]
[340943495,1730141448351,-10354.48515004,0.00043673,6]
[340943496,1730141448361,-10354.48515004,0.00043676,6]
[340943497,1730141448371,-500.0,0.00043684,4]
[340943498,1730141448382,-1500.0,0.00043688,7]
[340943499,1730141448392,-500.0,0.00043693,4]
[340943500,1730141448402,-153.06,0.000437,36]
[340943501,1730141448411,-153.06,0.000437,36]
[340943502,1730141448421,-153.06,0.000437,36]
[340943503,1730141448432,-153.06,0.000437,36]
[340943504,1730141448442,-153.06,0.000437,36]
[340943505,1730141448452,-4100.0,0.000437,15]
[340943506,1730141448462,-500.0,0.00043702,4]
[340943507,1730141448472,-500.0,0.00043711,4]
[340943508,1730141448482,-999.3,0.00043713,3]
[340943509,1730141448492,-500.0,0.00043719,4]
[340943510,1730141448502,-359.71092498,0.00043727,2]
[340943511,1730141448512,-6039.62833297,0.00043727,2]
[340943512,1730141448522,-500.0,0.00043728,4]
[340943513,1730141448532,-500.0,0.0004373,4]
[340943514,1730141448542,-500.0,0.00043737,4]
[340943515,1730141448552,-500.0,0.00043739,4]
[340943516,1730141448562,-500.0,0.00043746,4]
[340943517,1730141448572,-500.0,0.00043747,4]
[340943518,1730141448581,-335.254,0.0004375,2]
[340943519,1730141448591,-500.0,0.00043755,4]
[340943520,1730141448601,-500.0,0.00043756,4]
[340943521,1730141448610,-500.0,0.00043763,4]
[340943522,1730141448620,-500.0,0.00043765,4]
[340943523,1730141448629,-500.0,0.00043772,4]
[340943524,1730141448637,-10000.0,0.00043775,4]
[340943525,1730141448647,-359.71092498,0.00043777,2]
[340943526,1730141448659,-6039.62833296,0.00043777,2]
[340943527,1730141448671,-400.0,0.0004378,3]
[340943528,1730141448681,-500.0,0.00043786,3]
[340943529,1730141448690,-500.0,0.00043786,3]
[340943530,1730141448700,-500.0,0.00043786,3]
[340943531,1730141448711,-500.0,0.00043786,3]
[340943532,1730141448720,-500.0,0.00043786,3]
[340943533,1730141448731,-500.0,0.00043786,3]
[340943534,1730141448741,-1511.59,0.00043786,120]
[340943535,1730141448752,-1050.87,0.00043786,3]
[340943536,1730141448763,-515.93,0.00043786,3]
[340943537,1730141448773,-2055.95,0.00043786,3]
[340943538,1730141448783,-960.98,0.00043786,3]
[340943539,1730141448792,-500.0,0.00043786,3]
[340943540,1730141448802,-500.0,0.00043786,3]
[340943541,1730141448812,-2805.72836411,0.000438,120]
[340943542,1730141448822,-4462.06388716,0.000438,4]
[340943543,1730141448832,-4619.68902984,0.000438,2]
[340943544,1730141448841,-397.0,0.000438,31]
[340943545,1730141448851,-150.0,0.000438,33]
[340943546,1730141448861,-153.06,0.000438,36]
[340943547,1730141448870,-153.06,0.000438,36]
[340943548,1730141448879,-153.06,0.000438,36]
[340943549,1730141448889,-153.06,0.000438,36]
[340943550,1730141448898,-153.06,0.000438,36]
[340943551,1730141448908,-153.06,0.000438,36]
[340943552,1730141448917,-153.06,0.000438,36]
[340943553,1730141448927,-153.06,0.000438,36]
[340943554,1730141448937,-153.06,0.000438,36]
[340943555,1730141448947,-153.06,0.000438,36]
[340943556,1730141448956,-10094.99399558,0.000438,2]
[340943557,1730141448966,-1190.26134,0.000438,71]
[340943558,1730141448976,-4515.0,0.000438,15]
[340943559,1730141448986,-7500.0,0.00043819,120]
[340943560,1730141448996,-5575.18785398,0.0004382,120]
[340943561,1730141449006,-150.0,0.00043823,14]
[340943562,1730141449016,-150.0,0.00043823,14]
[340943563,1730141449026,-7500.0,0.00043823,120]
[340943564,1730141449035,-7500.0,0.00043823,120]
[340943565,1730141449045,-5129.28713915,0.00043823,120]
[340943566,1730141449054,-87164.96682832,0.00043824,120]
[340943567,1730141518742,194.16,0.00019178,2]
[340943569,1730141781287,161.37,0.00015342,2]
[340943570,1730142040387,158.06,0.00019684,2]
[340943582,1730142545717,250.0,0.00017,2]
[340943583,1730142546806,300.0,0.00019,2]
[340943610,1730142632208,-350.0,0.00021,2]
[340943612,1730142632222,-400.0,0.00023,2]
[340943614,1730142632232,-450.0,0.00025,2]
[340943616,1730142632242,-500.0,0.00027,2]
[340943619,1730142632257,-536.39414876,0.00028755,2]
[340943621,1730142632269,-546.83108769,0.00028755,2]
[340943623,1730142632279,-3030.14762475,0.00028755,2]
[340943624,1730142632290,-4477.92071747,0.00028755,2]
[340943625,1730142632303,-3931.56895087,0.00028755,2]
[340943626,1730142632312,-126.04619324,0.00028855,2]
[340943627,1730142632323,-518.20296276,0.00028855,2]
[340943628,1730142632333,-1083.22523645,0.000289,2]
[340943629,1730142632342,-550.0,0.00029,2]
[340943630,1730142632352,-600.0,0.00031,2]
[340943631,1730142632362,-650.0,0.00033,2]
[340943632,1730142632371,-700.0,0.00035,2]
[340943633,1730142632381,-247.17889373,0.00036485,120]
[340943634,1730142632391,-750.0,0.00037,2]
[340943635,1730142632400,-500.0,0.00037658,60]
[340943636,1730142632410,-500.0,0.00037658,60]
[340943637,1730142632420,-2205.0,0.00038342,2]
[340943638,1730142632429,-520.5617595,0.00038754,60]
[340943639,1730142632439,-500.0,0.00038754,60]
[340943640,1730142632449,-800.0,0.00039,2]
[340943641,1730142632458,-728.47,0.00039142,2]
[340943642,1730142632472,-500.0,0.0003985,60]
[340943643,1730142632481,-176.44,0.00039931,2]
[340943644,1730142632491,-1000.0,0.00040185,2]
[340943645,1730142632500,-159.75791775,0.00040373,5]
[340943646,1730142632510,-159.75794076,0.00040373,5]
[340943647,1730142632519,-159.75822572,0.00040373,5]
[340943648,1730142632532,-455.413,0.00040373,57]
[340943649,1730142632542,-1504.5239,0.00040399,2]
[340943650,1730142632551,-54393.22701634,0.00040399,2]
[340943651,1730142632563,-603.03497768,0.00040399,2]
[340943653,1730142632574,-765.29022052,0.00040399,2]
[340943655,1730142632586,-16131.06168546,0.00040399,2]
[340943657,1730142632595,-1248.12731454,0.00040399,2]
[340943659,1730142632607,-2135.8388,0.00040399,2]
[340943661,1730142632618,-10552.6900996,0.00040399,2]
[340943663,1730142632629,-1920.20039528,0.00040399,2]
[340943666,1730142632640,-10335.51029058,0.00040399,2]
[340943668,1730142632650,-500.0,0.00040498,3]
[340943670,1730142632660,-500.0,0.00040498,3]
[340943672,1730142632669,-500.0,0.00040498,3]
[340943674,1730142632679,-500.0,0.00040498,7]
[340943676,1730142632688,-500.0,0.00040498,3]
[340943678,1730142632699,-526.21,0.00040498,3]
[340943680,1730142632708,-500.0,0.00040498,3]
[340943682,1730142632719,-500.0,0.00040498,3]
[340943684,1730142632729,-250.0,0.00040506,120]
[340943686,1730142632739,-1074.63144746,0.00040672,15]
[340943688,1730142632748,-23900.0,0.00040702,2]
[340943690,1730142632758,-500.0,0.00040772,3]
[340943692,1730142632768,-500.0,0.00040772,3]
[340943694,1730142632777,-500.0,0.00040772,3]
[340943696,1730142632787,-526.21,0.00040772,3]
[340943698,1730142632797,-218.24099268,0.00040772,3]
[340943700,1730142632809,-500.0,0.00040772,3]
[340943702,1730142632819,-163.37815666,0.00040877,2]
[340943704,1730142632829,-500.0,0.00040946,60]
[340943707,1730142632839,-159.75822572,0.00040967,5]
[340943709,1730142632849,-850.0,0.00041,2]
[340943711,1730142632858,-1074.63144746,0.00041023,15]
[340943713,1730142632867,-500.0,0.00041046,3]
[340943715,1730142632877,-500.0,0.00041046,3]
[340943717,1730142632886,-500.0,0.00041046,3]
[340943719,1730142632895,-526.21,0.00041046,3]
[340943721,1730142632905,-500.0,0.00041046,3]
[340943723,1730142632914,-391.52931711,0.00041078,5]
[340943725,1730142632923,-150.0,0.00041096,2]
[340943727,1730142632932,-157.0,0.00041096,2]
[340943729,1730142632942,-500.0,0.00041138,2]
[340943731,1730142632952,-500.0,0.0004132,3]
[340943733,1730142632961,-500.0,0.0004132,3]
[340943735,1730142632972,-500.0,0.0004132,3]
[340943737,1730142632981,-526.21,0.0004132,3]
[340943739,1730142632990,-500.0,0.0004132,3]
[340943741,1730142633000,-2205.0,0.00041342,2]
[340943743,1730142633009,-1074.63144746,0.00041375,15]
[340943745,1730142633022,-728.47,0.00041406,2]
[340943747,1730142633035,-529.10039146,0.00041594,3]
[340943749,1730142633045,-500.0,0.00041594,3]
[340943751,1730142633054,-500.0,0.00041594,3]
[340943753,1730142633063,-526.21,0.00041594,3]
[340943755,1730142633075,-500.0,0.00041594,3]
[340943757,1730142633087,-3468.34856207,0.000416,2]
[340943759,1730142633097,-1074.63144746,0.00041726,15]
[340943761,1730142633107,-500.0,0.00041868,3]
[340943763,1730142633116,-500.0,0.00041868,3]
[340943765,1730142633126,-526.21,0.00041868,3]
[340943767,1730142633136,-500.0,0.00041868,3]
[340943769,1730142633145,-1410.0,0.000419,5]
[340943771,1730142633154,-500.0,0.00042042,60]
[340943773,1730142633164,-150.41,0.00042071,2]
[340943775,1730142633174,-1074.63144746,0.00042078,15]
[340943777,1730142633183,-500.0,0.00042142,3]
[340943779,1730142633193,-500.0,0.00042142,3]
[340943781,1730142633202,-526.21,0.00042142,3]
[340943783,1730142633215,-500.0,0.00042142,3]
[340943785,1730142633226,-500.0,0.00042142,120]
[340943787,1730142633236,-150.0,0.00042177,2]
[340943789,1730142633246,-1317.12,0.000423,2]
[340943791,1730142633256,-500.0,0.00042416,3]
[340943793,1730142633266,-500.0,0.00042416,3]
[340943795,1730142633276,-526.21,0.00042416,3]
[340943797,1730142633285,-500.0,0.00042416,3]
[340943799,1730142633295,-1074.63144746,0.00042429,15]
[340943801,1730142633305,-231.7909,0.00042455,2]
[340943803,1730142633315,-500.0,0.0004269,3]
[340943805,1730142633324,-500.0,0.0004269,3]
[340943807,1730142633334,-526.21,0.0004269,3]
[340943809,1730142633343,-500.0,0.0004269,3]
[340943811,1730142633353,-1074.63144746,0.00042781,15]
[340943813,1730142633362,-167.0,0.0004294,2]
[340943815,1730142633372,-1014.05515137,0.00042948,5]
[340943817,1730142633381,-500.0,0.00042964,3]
[340943819,1730142633391,-500.0,0.00042964,3]
[340943821,1730142633401,-526.21,0.00042964,3]
[340943823,1730142633411,-500.0,0.00042964,3]
[340943825,1730142633420,-900.0,0.00043,2]
[340943827,1730142633430,-157.281,0.0004307,30]
[340943829,1730142633440,-1881.2023,0.00043122,2]
[340943831,1730142633449,-500.0,0.00043138,60]
[340943833,1730142633459,-500.0,0.00043238,3]
[340943835,1730142633470,-500.0,0.00043238,3]
[340943837,1730142633480,-526.21,0.00043238,3]
[340943839,1730142633490,-500.0,0.00043238,3]
[340943841,1730142633499,-150.0,0.00043259,2]
[340943843,1730142633509,-500.0,0.00043512,3]
[340943845,1730142633518,-500.0,0.00043512,3]
[340943848,1730142633528,-526.21,0.00043512,3]
[340943850,1730142633538,-500.0,0.00043512,3]
[340943852,1730142633547,-728.47,0.0004367,2]
[340943854,1730142633557,-153.1,0.000437,36]
[340943856,1730142633567,-153.1,0.000437,36]
[340943858,1730142633576,-153.1,0.000437,36]
[340943860,1730142633586,-645.4381,0.00043724,2]
[340943862,1730142633596,-21582.2709,0.00043724,120]
[340943864,1730142633606,-500.0,0.00043726,3]
[340943867,1730142633622,-500.0,0.00043726,3]
[340943869,1730142633638,-159.59547406,0.00043727,18]
[340943871,1730142633649,-1000.0,0.00043729,120]
[340943873,1730142633659,-216.18140775,0.0004373,16]
[340943875,1730142633670,-171.07892214,0.0004373,12]
[340943877,1730142633679,-19530.16344433,0.0004373,2]
[340943879,1730142633690,-1136.93602087,0.0004373,2]
[340943881,1730142633700,-500.0,0.00043782,3]
[340943883,1730142633710,-500.0,0.00043782,3]
[340943885,1730142633726,-1656.665878,0.00043782,120]
[340943887,1730142633736,-368.69393184,0.00043782,3]
[340943889,1730142633747,-500.0,0.00043782,3]
[340943892,1730142633757,-356.85892224,0.00043783,2]
[340943894,1730142633768,-19530.16344433,0.00043783,2]
[340943896,1730142633778,-1136.93602086,0.00043783,2]
[340943898,1730142633788,-500.0,0.00043786,3]
[340943900,1730142633798,-500.0,0.00043786,3]
[340943902,1730142633808,-526.21,0.00043786,3]
[340943904,1730142633818,-500.0,0.00043786,3]
[340943906,1730142633827,-445.93081414,0.00043799,2]
[340943908,1730142633837,-150.0,0.000438,33]
[340943910,1730142633847,-153.1,0.000438,36]
[340943912,1730142633856,-153.1,0.000438,36]
[340943914,1730142633866,-153.1,0.000438,36]
[340943916,1730142633877,-153.1,0.000438,36]
[340943918,1730142633887,-153.1,0.000438,36]
[340943920,1730142633897,-153.1,0.000438,36]
[340943922,1730142633907,-462.95435639,0.00043813,3]
[340943924,1730142633918,-942.31,0.00043813,3]
[340943926,1730142633928,-500.0,0.00043813,3]
[340943928,1730142633938,-252.70903808,0.00043814,10]
[340943931,1730142633948,-500.0,0.00043823,2]
[340943932,1730142633958,-660.44,0.00043823,2]
[340943935,1730142633972,-500.0,0.00043823,3]
[340943937,1730142633982,-500.0,0.00043823,3]
[340943939,1730142633993,-500.0,0.00043823,3]
[340943941,1730142634003,-500.0,0.00043823,3]
[340943943,1730142634012,-500.0,0.00043823,3]
[340943945,1730142634023,-909.53,0.00043823,3]
[340943947,1730142634034,-500.0,0.00043823,3]
[340943949,1730142634044,-500.0,0.00043823,3]
[340943951,1730142634054,-9315.01,0.00043823,120]
[340943953,1730142634065,-500.0,0.00043823,3]
[340943955,1730142634075,-157.0,0.00043824,7]
[340943957,1730142634084,-2442.34081815,0.00043824,2]
[340943959,1730142634093,-19839.14768712,0.00043824,2]
[340943962,1730142634110,-128982.55875869,0.00043824,2]
[340943964,1730142634120,-11653.23560838,0.00043824,120]
[340943966,1730142634131,-7059.5764686,0.00043824,120]
[340943968,1730142634142,-639.2284197,0.00043824,120]
[340943970,1730142634154,-6822.66290055,0.00043824,120]
[340943972,1730142634165,-324.2343219,0.00043824,120]
[340943977,1730142634195,-5653.0,0.00043824,120]
[340943979,1730142634206,-1064.51898927,0.00043824,120]
[340943981,1730142634220,-302.14414535,0.00043824,120]
[340943984,1730142634236,-544.02,0.00043824,120]
[340943986,1730142634250,-10491.247,0.00043824,120]
[340944005,1730142638427,-544.61761896,0.00043132,15]
[340944006,1730142638447,-445.42957939,0.00043132,15]
[340944007,1730142638461,-84.58424911,0.00043132,15]
[340944008,1730142638471,-2013.20944432,0.0004373,2]
[340944009,1730142638480,-632.92,0.00043782,2]
[340944010,1730142638494,-334.4481106,0.00043799,2]
[340944011,1730142638504,-1771.8792696,0.00043824,120]
[340944012,1730142638517,-1599.21665465,0.00043824,120]
[340944013,1730142638530,-539.72627793,0.00043824,120]
[340944014,1730142638543,-1000.0,0.00043824,120]
[340944015,1730142638558,-410.82807031,0.00043824,120]
[340944016,1730142638570,-22013.731444,0.00043824,120]
[340944017,1730142638583,-2310.3194504,0.00043824,120]
[340944018,1730142638596,-666.88035662,0.00043824,120]
[340944019,1730142638651,-19442.76090815,0.00043824,120]
[340944020,1730142638663,-676.29476849,0.00043824,120]
[340944021,1730142638675,-19453.41639563,0.00043824,120]
[340944022,1730142638687,-69492.03644873,0.00043824,120]
[340944023,1730142638698,-954.02290234,0.00043824,120]
[340944157,1730142640397,-416.6316,0.00043783,2]
[340944159,1730142640411,-1596.57784432,0.00043783,2]
[340944161,1730142640422,-1658.01420892,0.00043824,120]
[340944164,1730142640439,-3109.0783852,0.00043824,120]
[340944173,1730142640523,-1822.53339675,0.00043824,120]
[340944175,1730142640536,-1209.95927744,0.00043824,120]
[340944188,1730142640644,-1040.26083,0.00043824,120]
[340944199,1730142640751,-13003.73597582,0.00043824,120]
[340944459,1730142643241,-1073.633557,0.00043484,15]
[340944460,1730142643293,-0.99789046,0.00043484,15]
[340944462,1730142643303,-1040.48210954,0.00043824,120]
[340944476,1730142643432,-315.28602914,0.00043824,120]
[340944478,1730142643445,-1862.05974064,0.00043824,120]
[340944481,1730142643456,-258.9717248,0.00043824,120]
[340944483,1730142643472,-1405.7,0.00043824,120]
[340944485,1730142643483,-1000.01231959,0.00043824,120]
[340944489,1730142643510,-18463.2983,0.00043824,120]
[340944494,1730142643547,-593.4367176,0.00043824,120]
[340944626,1730142646256,-21053.60509189,0.00043824,120]
[340944628,1730142646268,-281.74546058,0.00043824,120]
[340944631,1730142646280,-608.21731146,0.00043824,120]
[340944633,1730142646294,-55063.73631687,0.00043824,120]
[340944635,1730142646306,-1021.26579556,0.00043824,120]
[340944651,1730142646428,-1571.96209788,0.00043824,120]
[340944653,1730142646440,-1927.24266304,0.00043824,120]
[340944655,1730142646451,-830727.79717193,0.00043824,120]
[340944656,1730142646462,-13471.09962182,0.00043824,120]
[340944657,1730142646476,-255.00000002,0.00043824,120]
[340944658,1730142646488,-3397.01544,0.00043824,120]
[340944660,1730142646499,-1665.89,0.00043824,120]
[340944672,1730142646599,-3478.60863541,0.00043824,120]
[340944674,1730142646611,-13970.18847346,0.00043824,120]
[340944804,1730142986338,182.11,0.00015342,2]
[340944806,1730143392407,-632.2587,0.00043934,30]
[340944807,1730143392436,-164.2808183,0.00043934,30]
[340944808,1730143392465,-176.4728633,0.00043934,60]
[340944809,1730143392493,-439.90665074,0.00043934,30]
[340944810,1730143392524,-157.87272261,0.00043934,30]
[340944811,1730143392553,-20449.25020576,0.00043934,90]
[340944812,1730143392580,-10000.0,0.00043934,60]
[340944813,1730143392615,-800.0,0.00043934,120]
[340944814,1730143392644,-10191.56773916,0.00043934,120]
[340944815,1730143392673,-6730.11784888,0.00043934,120]
[340944816,1730143392699,-938.0,0.00043934,30]
[340944817,1730143392728,-938.0,0.00043934,30]
[340944818,1730143392755,-938.0,0.00043934,30]
[340944819,1730143392782,-938.0,0.00043934,30]
[340944820,1730143392808,-938.0,0.00043934,30]
[340944821,1730143392841,-938.0,0.00043934,30]
[340944822,1730143392868,-938.0,0.00043934,30]
[340944823,1730143392895,-938.0,0.00043934,30]
[340944824,1730143392922,-938.0,0.00043934,30]
[340944825,1730143392970,-182.9854276,0.00043934,30]
[340944826,1730143393018,-938.0,0.00043934,30]
[340944827,1730143393062,-938.0,0.00043934,30]
[340944828,1730143393105,-938.0,0.00043934,30]
[340944829,1730143393158,-938.0,0.00043934,30]
[340944830,1730143393201,-938.0,0.00043934,30]
[340944831,1730143393244,-938.0,0.00043934,30]
[340944832,1730143393286,-805.89728738,0.00043934,30]
[340944833,1730143393329,-938.0,0.00043934,30]
[340944834,1730143393375,-1145.7,0.00043934,60]
[340944835,1730143393420,-180.0,0.00043934,31]
[340944836,1730143393465,-5050.0,0.00043934,32]
[340944837,1730143393512,-170.0,0.00043934,120]
[340944838,1730143393556,-681.76913754,0.00043934,120]
[340944839,1730143393601,-1188.13303363,0.00043934,120]
[340944840,1730143393645,-161.03622296,0.00043934,120]
[340944841,1730143393688,-70961.44798424,0.00043934,120]
[340944842,1730143393732,-2617.25518071,0.00043934,120]
[340944843,1730143393776,-6581.0,0.00043934,30]
[340944844,1730143393820,-2632.0,0.00043934,120]
[340944845,1730143393868,-174.03210038,0.00043934,120]
[340944846,1730143420989,17114.0,0.00043934,30]
[340944847,1730143489505,-1000.0,0.00042,60]
[340944848,1730143489550,-250.0,0.00042389,120]
[340944849,1730143489594,-3242.25293885,0.00042599,120]
[340944850,1730143489635,-404.0,0.00043386,30]
[340944851,1730143489678,-417.937,0.000437,68]
[340944852,1730143489722,-153.14,0.000437,36]
[340944853,1730143489765,-153.14,0.000437,36]
[340944854,1730143489806,-160.66,0.0004372,30]